[Event "24th European Women Club Cup 2019"]
[Site "Ulcinj"]
[Date "2019.11.13"]
[Round "4.6"]
[White "Mammadova, Gulnar"]
[Black "Muzychuk, Anna"]
[Result "1/2-1/2"]
[ECO "C50"]
[WhiteElo "2369"]
[BlackElo "2543"]
[Annotator "ChessBase"]
[PlyCount "47"]
[EventDate "2019.11.10"]
[EventType "team-tourn"]
[EventCountry "MNE"]
[SourceTitle "playchess.com"]
[Source "ChessBase"]
[SourceQuality "1"]
[WhiteTeam "Odlar Yurdu"]
[BlackTeam "Kyiv"]
[TimeControl "40/5400+30:1800+30"]

1. e4 {[%emt 0:00:00]} e5 {[%emt 0:00:00]} 2. Nf3 {[%emt 0:00:00]} Nc6 {[%emt 0:00:00]} 3. Bc4 {[%emt 0:00:00]} Bc5 {[%emt 0:00:00]} 4. d3 {[%emt 0:00:12]} Nf6 {[%emt 0:00:00]} 5. Nc3 {[%emt 0:00:31]} a6 {[%emt 0:04:23]} 6. Bg5 {[%emt 0:00:13]} h6 {[%emt 0:03:12]} 7. Bxf6 {[%emt 0:00:15]} Qxf6 {[%emt 0:00:06]} 8. Nd5 {[%emt 0:00:06]} Qd8 {[%emt 0:00:06]} 9. c3 {[%emt 0:00:10]} d6 {[%emt 0:00:52]} 10. d4 {[%emt 0:00:20]} exd4 {[%emt 0:02:59]} 11. cxd4 {[%emt 0:00:08]} Ba7 {[%emt 0:00:15]} 12. h3 {[%emt 0:01:19]} Ne7 {[%emt 0:05:17]} 13. Nxe7 {[%emt 0:01:55]} Qxe7 {[%emt 0:00:06]} 14. O-O {[%emt 0:00:10]} O-O {[%emt 0:00:40]} 15. Re1 {[%emt 0:00:33]} c6 {[%emt 0:05:29]} 16. Rc1 {[%emt 0:04:35]} Bd7 {[%emt 0:04:10]} 17. b4 {[%emt 0:06:24]} Rac8 {[%emt 0:05:19]} 18. Bb3 {[%emt 0:05:13]} Rfe8 {[%emt 0:04:33]} 19. Qd3 {[%emt 0:06:47]} Qf6 {[%emt 0:05:38]} 20. Rcd1 {[%emt 0:07:36]} Qg6 {[%emt 0:07:22]} 21. Nh4 {[%emt 0:03:35]} Qf6 {[%emt 0:00:38]} 22. Nf3 {[%emt 0:00:20]} Qg6 {[%emt 0:01:20]} 23. Nh4 {[%emt 0:00:24]} Qf6 {[%emt 0:00:05]} 24. Nf3 1/2-1/2

[Event "24th European Women Club Cup 2019"]
[Site "Ulcinj"]
[Date "2019.11.13"]
[Round "4.7"]
[White "Abdumalik, Zhansaya"]
[Black "Balajayeva, Khanim"]
[Result "1-0"]
[ECO "C97"]
[WhiteElo "2472"]
[BlackElo "2368"]
[Annotator "ChessBase"]
[PlyCount "99"]
[EventDate "2019.11.10"]
[EventType "team-tourn"]
[EventCountry "MNE"]
[SourceTitle "playchess.com"]
[Source "ChessBase"]
[SourceQuality "1"]
[WhiteTeam "Kyiv"]
[BlackTeam "Odlar Yurdu"]
[TimeControl "40/5400+30:1800+30"]

1. e4 {[%emt 0:00:00]} e5 {[%emt 0:00:00]} 2. Nf3 {[%emt 0:00:00]} Nc6 {[%emt 0:00:00]} 3. Bb5 {[%emt 0:00:17]} a6 {[%emt 0:00:00]} 4. Ba4 {[%emt 0:00:06]} Nf6 {[%emt 0:00:02]} 5. O-O {[%emt 0:00:05]} Be7 {[%emt 0:00:07]} 6. Re1 {[%emt 0:00:08]} b5 {[%emt 0:00:27]} 7. Bb3 {[%emt 0:00:06]} d6 {[%emt 0:00:09]} 8. c3 {[%emt 0:00:23]} O-O {[%emt 0:00:13]} 9. h3 {[%emt 0:00:06]} Na5 {[%emt 0:00:16]} 10. Bc2 {[%emt 0:00:11]} c5 {[%emt 0:00:10]} 11. d4 {[%emt 0:00:36]} Qc7 {[%emt 0:01:09]} 12. d5 {[%emt 0:00:30]} Bd7 {[%emt 0:00:13]} 13. b3 {[%emt 0:00:29]} Nb7 {[%emt 0:00:27]} 14. c4 {[%emt 0:04:14]} Na5 {[%emt 0:03:38]} 15. Nbd2 {[%emt 0:03:51]} bxc4 {[%emt 0:01:18]} 16. Nxc4 {[%emt 0:03:45]} Nxc4 {[%emt 0:04:01]} 17. bxc4 {[%emt 0:01:07]} Rfb8 {[%emt 0:01:34]} 18. Bd2 {[%emt 0:01:48]} Rb7 {[%emt 0:02:05]} 19. Bc3 {[%emt 0:02:23]} g6 {[%emt 0:05:25]} 20. Nd2 {[%emt 0:07:16]} Nh5 {[%emt 0:02:51]} 21. Nb3 {[%emt 0:01:51]} a5 {[%emt 0:32:04]} 22. a4 {[%emt 0:04:44]} Qd8 {[%emt 0:04:38]} 23. Qf3 {[%emt 0:06:50]} Rba7 {[%emt 0:01:43]} 24. Reb1 {[%emt 0:01:25]} Qe8 {[%emt 0:02:20]} 25. Nd2 {[%emt 0:01:03]} Nf4 {[%emt 0:01:41]} 26. Kh2 {[%emt 0:03:25]} Rb8 {[%emt 0:01:49]} 27. Rb5 {[%emt 0:06:01]} Bxb5 {[%emt 0:02:39]} 28. cxb5 {[%emt 0:00:07]} Bd8 {[%emt 0:06:13]} 29. Nc4 {[%emt 0:00:54]} Qe7 {[%emt 0:00:23]} 30. Rb1 {[%emt 0:02:10]} Bb6 {[%emt 0:01:46]} 31. g3 {[%emt 0:02:46]} Nh5 {[%emt 0:00:05]} 32. Qe3 {[%emt 0:00:37]} f6 {[%emt 0:02:51]} 33. Nxb6 {[%emt 0:02:32]} Rxb6 {[%emt 0:00:03]} 34. Qd2 {[%emt 0:00:17]} Rb8 {[%emt 0:02:47]} 35. Bxa5 {[%emt 0:01:05]} Qe8 {[%emt 0:06:44]} 36. Bc3 {[%emt 0:03:30]} Rf7 {[%emt 0:08:43]} 37. b6 {[%emt 0:02:02]} Qc8 {[%emt 0:04:01]} 38. Qe2 {[%emt 0:02:20]} Ra8 {[%emt 0:01:05]} 39. a5 {[%emt 0:00:43]} c4 {[%emt 0:00:15]} 40. Ba4 {[%emt 0:00:00]} f5 {[%emt 0:00:00]} 41. Bc6 {[%emt 0:04:55]} Rb8 {[%emt 0:00:45]} 42. b7 {[%emt 0:05:32]} Rbxb7 {[%emt 0:01:54]} 43. Rxb7 {[%emt 0:00:15]} Rxb7 {[%emt 0:00:04]} 44. Bxb7 {[%emt 0:00:05]} Qxb7 {[%emt 0:00:04]} 45. Qxc4 {[%emt 0:00:33]} Nf6 {[%emt 0:01:22]} 46. a6 {[%emt 0:01:53]} Qb8 {[%emt 0:01:45]} 47. exf5 {[%emt 0:01:31]} Nd7 {[%emt 0:01:07]} 48. fxg6 {[%emt 0:00:52]} hxg6 {[%emt 0:00:05]} 49. Qc6 {[%emt 0:01:16]} Nc5 {[%emt 0:00:29]} 50. Bxe5 {[%emt 0:01:18]} 1-0

[Event "24th European Women Club Cup 2019"]
[Site "Ulcinj"]
[Date "2019.11.13"]
[Round "4.8"]
[White "Mamedjarova, Zeinab"]
[Black "Gaponenko, Inna"]
[Result "1/2-1/2"]
[ECO "D20"]
[WhiteElo "2280"]
[BlackElo "2427"]
[Annotator "NA"]
[PlyCount "77"]
[EventDate "2019.11.10"]
[EventType "team-tourn"]
[EventCountry "MNE"]
[SourceTitle "playchess.com"]
[Source "ChessBase"]
[SourceQuality "1"]
[WhiteTeam "Odlar Yurdu"]
[BlackTeam "Kyiv"]
[TimeControl "40/5400+30:1800+30"]

1. d4 {[%emt 0:00:00]} d5 {[%emt 0:00:00]} 2. c4 {[%emt 0:00:00]} dxc4 {[%emt 0:00:41]} 3. e4 {[%emt 0:00:10]} e5 {[%emt 0:00:11]} 4. Nf3 {[%emt 0:00:11]} Bb4+ {[%emt 0:00:38]} 5. Bd2 {[%emt 0:00:14]} Bxd2+ {[%emt 0:00:28]} 6. Nbxd2 {[%emt 0:00:03]} exd4 {[%emt 0:00:48]} 7. Bxc4 {[%emt 0:00:11]} Nc6 {[%emt 0:00:37]} 8. O-O {[%emt 0:00:30]} Qf6 {[%emt 0:00:20]} 9. Re1 {[%emt 0:03:44]} Nge7 {[%emt 0:03:21]} 10. e5 {[%emt 0:09:34]} Qg6 {[%emt 0:00:18]} 11. Ne4 {[%emt 0:09:33]} O-O {[%emt 0:32:49]} 12. Neg5 {[%emt 0:12:11]} Be6 {[%emt 0:29:30]} 13. Nxe6 {[%emt 0:13:20]} fxe6 {[%emt 0:00:07]} 14. Nxd4 {[%emt 0:04:37]} Rad8 {[%emt 0:11:26]} 15. Nxc6 {[%emt 0:02:56]} Nxc6 {[%emt 0:00:31]} 16. Qb1 {[%emt 0:02:23]} Qf7 {[%emt 0:05:11]} 17. f3 {[%emt 0:06:09]} Rd2 {[%emt 0:03:27]} 18. Kh1 {[%emt 0:04:43]} Rfd8 {[%emt 0:01:51]} 19. b4 {[%emt 0:04:22]} Nd4 {[%emt 0:01:53]} 20. Rd1 {[%emt 0:11:13]} Rxd1+ {[%emt 0:04:47]} 21. Qxd1 {[%emt 0:00:03]} Qe7 {[%emt 0:00:03]} 22. a3 {[%emt 0:00:57]} Qg5 {[%emt 0:00:47]} 23. Qg1 {[%emt 0:13:35]} Qxe5 {[%emt 0:00:21]} 24. Re1 {[%emt 0:00:09]} Qf6 {[%emt 0:00:19]} 25. Qf2 {[%emt 0:00:37]} b5 {[%emt 0:01:08]} 26. Ba2 {[%emt 0:00:27]} Kh8 {[%emt 0:00:30]} 27. f4 {[%emt 0:00:11]} c6 {[%emt 0:00:26]} 28. g3 {[%emt 0:00:15]} g6 {[%emt 0:00:30]} 29. Bb1 {[%emt 0:00:36]} Rd7 {[%emt 0:00:32]} 30. Qb2 {[%emt 0:00:37]} Kg7 {[%emt 0:00:09]} 31. Qc3 {[%emt 0:00:58]} Kf7 {[%emt 0:00:54]} 32. Be4 {[%emt 0:00:37]} Qd8 {[%emt 0:00:44]} 33. Qc5 {[%emt 0:00:49]} Qe7 {[%emt 0:00:18]} 34. Qe5 {[%emt 0:00:17]} Qf6 {[%emt 0:00:10]} 35. Qb8 {[%emt 0:00:41]} Qd8 {[%emt 0:00:07]} 36. Qe5 {[%emt 0:00:24]} Qf6 {[%emt 0:00:03]} 37. Qc5 {[%emt 0:00:37]} Qe7 {[%emt 0:00:06]} 38. Qe5 {[%emt 0:00:30]} Qf6 39. Qg5 1/2-1/2

[Event "24th European Women Club Cup 2019"]
[Site "Ulcinj"]
[Date "2019.11.13"]
[Round "4.9"]
[White "Dzagnidze, Nana"]
[Black "Khademalsharieh, Sarasadat"]
[Result "1-0"]
[ECO "A10"]
[WhiteElo "2502"]
[BlackElo "2491"]
[Annotator "ChessBase"]
[PlyCount "85"]
[EventDate "2019.11.10"]
[EventType "team-tourn"]
[EventCountry "MNE"]
[SourceTitle "playchess.com"]
[Source "ChessBase"]
[SourceQuality "1"]
[WhiteTeam "Nona"]
[BlackTeam "Pentole Agnelli"]
[TimeControl "40/5400+30:1800+30"]

1. c4 {[%emt 0:00:00]} b6 {[%emt 0:00:00]} 2. Nf3 {[%emt 0:01:05]} Bb7 {[%emt 0:00:13]} 3. b3 {[%emt 0:00:30]} Nf6 {[%emt 0:01:10]} 4. Bb2 {[%emt 0:00:26]} g6 {[%emt 0:05:01]} 5. d4 {[%emt 0:07:26]} Bg7 {[%emt 0:01:56]} 6. g3 {[%emt 0:00:29]} O-O {[%emt 0:01:02]} 7. Bg2 {[%emt 0:00:14]} c5 {[%emt 0:06:31]} 8. dxc5 {[%emt 0:08:25]} bxc5 {[%emt 0:00:15]} 9. O-O {[%emt 0:00:05]} d6 {[%emt 0:05:02]} 10. e3 {[%emt 0:05:26]} Nbd7 {[%emt 0:08:43]} 11. Qe2 {[%emt 0:02:08]} Qb6 {[%emt 0:04:43]} 12. Rd1 {[%emt 0:07:03]} Ne4 {[%emt 0:07:20]} 13. Bxg7 {[%emt 0:02:03]} Kxg7 {[%emt 0:00:05]} 14. Ne1 {[%emt 0:00:14]} Rfd8 {[%emt 0:07:25]} 15. f3 {[%emt 0:02:47]} Nef6 {[%emt 0:00:06]} 16. Nc3 {[%emt 0:01:25]} Bc6 {[%emt 0:04:40]} 17. Nd3 {[%emt 0:04:09]} Ne5 {[%emt 0:03:40]} 18. f4 {[%emt 0:12:29]} Nxd3 {[%emt 0:00:16]} 19. Rxd3 {[%emt 0:00:05]} Qb7 {[%emt 0:11:44]} 20. e4 {[%emt 0:05:35]} e5 {[%emt 0:05:38]} 21. Rad1 {[%emt 0:00:54]} Qe7 {[%emt 0:02:27]} 22. Qd2 {[%emt 0:09:35]} Ne8 {[%emt 0:00:40]} 23. fxe5 {[%emt 0:10:27]} Qxe5 {[%emt 0:00:07]} 24. Qf4 {[%emt 0:01:56]} f6 {[%emt 0:00:42]} 25. Qxe5 {[%emt 0:00:50]} fxe5 {[%emt 0:00:05]} 26. Bh3 {[%emt 0:00:06]} Rab8 {[%emt 0:01:05]} 27. Be6 {[%emt 0:00:16]} Rb7 {[%emt 0:02:52]} 28. Bd5 {[%emt 0:03:17]} Bxd5 {[%emt 0:00:31]} 29. Rxd5 {[%emt 0:00:03]} Rdb8 {[%emt 0:04:04]} 30. Nb5 {[%emt 0:00:51]} Rxb5 {[%emt 0:00:15]} 31. cxb5 {[%emt 0:00:06]} Rxb5 {[%emt 0:00:05]} 32. Kg2 {[%emt 0:07:47]} Kf7 {[%emt 0:00:53]} 33. R5d2 {[%emt 0:02:02]} Ke6 {[%emt 0:04:04]} 34. g4 {[%emt 0:02:50]} Rb6 {[%emt 0:05:15]} 35. g5 {[%emt 0:00:14]} Ng7 {[%emt 0:03:24]} 36. Rf1 {[%emt 0:00:08]} Nh5 {[%emt 0:00:14]} 37. Rf8 {[%emt 0:00:06]} Rb7 {[%emt 0:00:48]} 38. Re8+ {[%emt 0:01:03]} Kf7 {[%emt 0:01:40]} 39. Rd8 {[%emt 0:00:30]} Nf4+ {[%emt 0:00:05]} 40. Kf1 {[%emt 0:00:00]} d5 {[%emt 0:00:00]} 41. exd5 {[%emt 0:02:42]} Ke7 {[%emt 0:04:02]} 42. Rc8 {[%emt 0:01:36]} Kd6 {[%emt 0:00:05]} 43. Rc6+ {[%emt 0:00:10] Kxd5} 1-0

[Event "24th European Women Club Cup 2019"]
[Site "Ulcinj"]
[Date "2019.11.13"]
[Round "4.10"]
[White "Paehtz, Elisabeth"]
[Black "Javakhishvili, Lela"]
[Result "1/2-1/2"]
[ECO "E01"]
[WhiteElo "2484"]
[BlackElo "2457"]
[Annotator "ChessBase"]
[PlyCount "61"]
[EventDate "2019.11.10"]
[EventType "team-tourn"]
[EventCountry "MNE"]
[SourceTitle "playchess.com"]
[Source "ChessBase"]
[SourceQuality "1"]
[WhiteTeam "Pentole Agnelli"]
[BlackTeam "Nona"]
[TimeControl "40/5400+30:1800+30"]

1. d4 {[%emt 0:00:00]} Nf6 {[%emt 0:00:00]} 2. c4 {[%emt 0:00:00]} e6 {[%emt 0:00:00]} 3. g3 {[%emt 0:00:00]} d5 {[%emt 0:00:00]} 4. Bg2 {[%emt 0:00:00]} dxc4 {[%emt 0:00:12]} 5. Qa4+ {[%emt 0:00:00]} Bd7 {[%emt 0:00:14]} 6. Qxc4 {[%emt 0:00:00]} c5 {[%emt 0:00:16]} 7. dxc5 {[%emt 0:01:45]} Bc6 {[%emt 0:00:06]} 8. Nf3 {[%emt 0:00:15]} Bd5 {[%emt 0:00:30]} 9. Qa4+ {[%emt 0:01:00]} Bc6 {[%emt 0:00:05]} 10. Qc4 {[%emt 0:04:02]} Bd5 {[%emt 0:00:05]} 11. Qc2 {[%emt 0:00:59]} Be4 {[%emt 0:02:12]} 12. Qd2 {[%emt 0:02:51]} Nbd7 {[%emt 0:11:27]} 13. Nc3 {[%emt 0:02:27]} Bxc5 {[%emt 0:00:29]} 14. O-O {[%emt 0:01:35]} Bc6 {[%emt 0:00:25]} 15. Qf4 {[%emt 0:09:40]} Qe7 {[%emt 0:04:20]} 16. Nh4 {[%emt 0:05:14]} Bd6 {[%emt 0:07:39]} 17. Qd4 {[%emt 0:04:48]} Bxg2 {[%emt 0:02:18]} 18. Nxg2 {[%emt 0:01:29]} O-O {[%emt 0:00:29]} 19. Rd1 {[%emt 0:09:56]} Bc5 {[%emt 0:01:56]} 20. Qh4 {[%emt 0:00:47]} Rfd8 {[%emt 0:01:49]} 21. Be3 {[%emt 0:00:08]} Bxe3 {[%emt 0:05:35]} 22. Nxe3 {[%emt 0:00:06]} Nb6 {[%emt 0:02:49]} 23. Qg5 {[%emt 0:03:20]} Qb4 {[%emt 0:08:41]} 24. Qb5 {[%emt 0:01:14]} Qxb5 {[%emt 0:00:31]} 25. Nxb5 {[%emt 0:00:06]} a6 {[%emt 0:00:37]} 26. Nc3 {[%emt 0:01:04]} Kf8 {[%emt 0:00:45]} 27. f4 {[%emt 0:02:14]} Ke7 {[%emt 0:00:30]} 28. Kg2 {[%emt 0:01:17]} Rac8 {[%emt 0:00:35]} 29. Kf3 {[%emt 0:00:23]} Rxd1 {[%emt 0:03:05]} 30. Rxd1 {[%emt 0:00:05]} Nc4 {[%emt 0:00:15]} 31. Nxc4 {[%emt 0:06:23]} 1/2-1/2

[Event "24th European Women Club Cup 2019"]
[Site "Ulcinj"]
[Date "2019.11.13"]
[Round "4.11"]
[White "Batsiashvili, Nino"]
[Black "Brunello, Marina"]
[Result "1-0"]
[ECO "D00"]
[WhiteElo "2422"]
[BlackElo "2378"]
[Annotator "NA"]
[PlyCount "65"]
[EventDate "2019.11.10"]
[EventType "team-tourn"]
[EventCountry "MNE"]
[SourceTitle "playchess.com"]
[Source "ChessBase"]
[SourceQuality "1"]
[WhiteTeam "Nona"]
[BlackTeam "Pentole Agnelli"]
[TimeControl "40/5400+30:1800+30"]

1. d4 {[%emt 0:00:00]} d5 {[%emt 0:00:00]} 2. Bf4 {[%emt 0:00:00]} c5 {[%emt 0:00:01]} 3. e3 {[%emt 0:00:00]} cxd4 {[%emt 0:00:29]} 4. exd4 {[%emt 0:00:15]} Nc6 {[%emt 0:00:09]} 5. Nf3 {[%emt 0:01:06]} Bf5 {[%emt 0:00:38]} 6. Bb5 {[%emt 0:06:33]} e6 {[%emt 0:13:50]} 7. Ne5 {[%emt 0:05:00]} Qb6 {[%emt 0:02:20]} 8. c4 {[%emt 0:05:36]} f6 {[%emt 0:09:18]} 9. Nxc6 {[%emt 0:10:26]} bxc6 {[%emt 0:00:22]} 10. Ba4 {[%emt 0:00:16]} Kf7 {[%emt 0:09:55]} 11. O-O {[%emt 0:08:11]} Qxb2 {[%emt 0:11:10]} 12. Qb3 {[%emt 0:09:47]} Qxb3 {[%emt 0:05:58]} 13. axb3 {[%emt 0:00:15]} Ne7 {[%emt 0:00:31]} 14. Nd2 {[%emt 0:03:09]} a5 {[%emt 0:05:47]} 15. Rfc1 {[%emt 0:02:44]} Ng6 {[%emt 0:06:17]} 16. Be3 {[%emt 0:02:48]} Ra6 {[%emt 0:00:19]} 17. cxd5 {[%emt 0:02:51]} cxd5 {[%emt 0:00:45]} 18. Rc7+ {[%emt 0:00:11]} Be7 {[%emt 0:00:21]} 19. b4 {[%emt 0:01:48]} Rha8 {[%emt 0:03:33]} 20. b5 {[%emt 0:01:09]} Rb6 {[%emt 0:00:39]} 21. Ra3 {[%emt 0:05:04]} Kf8 {[%emt 0:03:04]} 22. Rac3 {[%emt 0:01:02]} Bb4 {[%emt 0:00:39]} 23. R3c6 {[%emt 0:01:36]} Rab8 {[%emt 0:00:56]} 24. Nb3 {[%emt 0:02:19]} Rxc6 {[%emt 0:08:18]} 25. bxc6 {[%emt 0:00:21]} e5 {[%emt 0:02:13]} 26. dxe5 {[%emt 0:11:21]} fxe5 {[%emt 0:00:08]} 27. Nc5 {[%emt 0:00:50]} d4 {[%emt 0:03:47]} 28. Nd7+ {[%emt 0:00:06]} Bxd7 {[%emt 0:00:11]} 29. cxd7 {[%emt 0:00:01]} Rd8 {[%emt 0:00:22]} 30. Rc8 {[%emt 0:01:01]} Be7 {[%emt 0:02:50]} 31. Bd2 {[%emt 0:00:12]} Nf4 {[%emt 0:00:32]} 32. Bxa5 {[%emt 0:00:13]} Ne6 {[%emt 0:00:04]} 33. Bb3 {[%emt 0:00:15]} 1-0

[Event "24th European Women Club Cup 2019"]
[Site "Ulcinj"]
[Date "2019.11.13"]
[Round "4.12"]
[White "Tomilova, Elena"]
[Black "Khotenashvili, Bela"]
[Result "1/2-1/2"]
[ECO "E91"]
[WhiteElo "2345"]
[BlackElo "2446"]
[Annotator "NA"]
[PlyCount "102"]
[EventDate "2019.11.10"]
[EventType "team-tourn"]
[EventCountry "MNE"]
[SourceTitle "playchess.com"]
[Source "ChessBase"]
[SourceQuality "1"]
[WhiteTeam "Pentole Agnelli"]
[BlackTeam "Nona"]
[TimeControl "40/5400+30:1800+30"]

1. c4 {[%emt 0:00:00]} g6 {[%emt 0:00:00]} 2. e4 {[%emt 0:00:00]} Bg7 {[%emt 0:00:13]} 3. d4 {[%emt 0:01:12]} d6 {[%emt 0:00:11]} 4. Nc3 {[%emt 0:00:32]} Nf6 {[%emt 0:00:58]} 5. Nf3 {[%emt 0:00:27]} O-O {[%emt 0:00:16]} 6. Be2 {[%emt 0:00:18]} Nbd7 {[%emt 0:00:36]} 7. e5 {[%emt 0:05:04]} Ne8 {[%emt 0:05:36]} 8. h4 {[%emt 0:00:28]} c5 {[%emt 0:04:04]} 9. exd6 {[%emt 0:00:57]} Nxd6 {[%emt 0:00:52]} 10. h5 {[%emt 0:02:55]} cxd4 {[%emt 0:08:24]} 11. Nxd4 {[%emt 0:00:34]} Nf6 {[%emt 0:10:04]} 12. hxg6 {[%emt 0:05:36]} hxg6 {[%emt 0:00:16]} 13. Be3 {[%emt 0:05:29]} Nf5 {[%emt 0:11:53]} 14. Nxf5 {[%emt 0:00:33]} Qxd1+ {[%emt 0:09:19]} 15. Rxd1 {[%emt 0:01:59]} Bxf5 {[%emt 0:00:20]} 16. b3 {[%emt 0:08:54]} b6 {[%emt 0:07:13]} 17. Nb5 {[%emt 0:10:13]} Be4 {[%emt 0:06:58]} 18. Bf3 {[%emt 0:02:33]} Bxf3 {[%emt 0:01:57]} 19. gxf3 {[%emt 0:00:02]} Rfc8 {[%emt 0:00:51]} 20. a4 {[%emt 0:02:47]} a6 {[%emt 0:00:30]} 21. Nc3 {[%emt 0:01:01]} Rab8 {[%emt 0:03:26]} 22. Ke2 {[%emt 0:02:38]} Rb7 {[%emt 0:05:07]} 23. Nd5 {[%emt 0:12:41]} Nxd5 {[%emt 0:06:50]} 24. Rxd5 {[%emt 0:01:06]} Kf8 {[%emt 0:01:58]} 25. f4 {[%emt 0:08:12]} f5 {[%emt 0:01:11]} 26. Rhd1 {[%emt 0:01:10]} Ke8 {[%emt 0:01:04]} 27. R1d3 {[%emt 0:02:51]} Bf6 {[%emt 0:01:21]} 28. Kd1 {[%emt 0:01:37]} Bg7 {[%emt 0:03:09]} 29. a5 {[%emt 0:01:03]} bxa5 {[%emt 0:00:12]} 30. Rxa5 {[%emt 0:00:12]} Rc6 {[%emt 0:00:12]} 31. Rad5 {[%emt 0:01:52]} Rc8 {[%emt 0:02:55]} 32. Kc2 {[%emt 0:00:46]} Bf6 {[%emt 0:01:38]} 33. Bd2 {[%emt 0:02:13]} Bh4 {[%emt 0:03:37]} 34. Rh3 {[%emt 0:02:20]} Bf6 {[%emt 0:00:01]} 35. Rg3 {[%emt 0:00:12]} Kf7 {[%emt 0:00:07]} 36. Ra5 {[%emt 0:00:24]} Rc6 {[%emt 0:01:16]} 37. Rd3 {[%emt 0:01:54]} Bh4 {[%emt 0:00:59]} 38. f3 {[%emt 0:00:45]} Ke8 {[%emt 0:02:39]} 39. Rad5 {[%emt 0:04:44]} Rb8 {[%emt 0:00:14]} 40. Bc3 {[%emt 0:00:00]} Kf7 {[%emt 0:00:00]} 41. Rd1 {[%emt 0:07:06]} Bf6 {[%emt 0:02:26]} 42. Rd8 {[%emt 0:05:50]} Rxd8 {[%emt 0:01:06]} 43. Rxd8 {[%emt 0:00:02]} e5 {[%emt 0:01:37]} 44. Rd5 {[%emt 0:05:33]} exf4 {[%emt 0:00:23]} 45. Bd2 {[%emt 0:00:07]} Ke6 {[%emt 0:11:47]} 46. Bxf4 {[%emt 0:01:04]} g5 {[%emt 0:00:21]} 47. Bd2 {[%emt 0:01:31]} Rd6 {[%emt 0:01:16]} 48. Ra5 {[%emt 0:03:39]} Rc6 {[%emt 0:00:27]} 49. Kd3 {[%emt 0:01:07]} Rd6+ {[%emt 0:00:11]} 50. Kc2 {[%emt 0:01:16]} Rc6 {[%emt 0:00:05]} 51. Kd3 {[%emt 0:00:22]} Rd6+ {[%emt 0:00:05] Ke4 Ke5+} 1/2-1/2

[Event "24th European Women Club Cup 2019"]
[Site "Ulcinj"]
[Date "2019.11.13"]
[Round "4.13"]
[White "Gunina, Valentina"]
[Black "Bodnaruk, Anastasia"]
[Result "1-0"]
[ECO "E73"]
[WhiteElo "2509"]
[BlackElo "2412"]
[Annotator "ChessBase"]
[PlyCount "92"]
[EventDate "2019.11.10"]
[EventType "team-tourn"]
[EventCountry "MNE"]
[SourceTitle "playchess.com"]
[Source "ChessBase"]
[SourceQuality "1"]
[WhiteTeam "Maribor"]
[BlackTeam "SPB"]
[TimeControl "40/5400+30:1800+30"]

1. d4 {[%emt 0:00:00]} Nf6 {[%emt 0:00:00]} 2. c4 {[%emt 0:00:00]} g6 {[%emt 0:00:00]} 3. Nc3 {[%emt 0:00:00]} Bg7 4. e4 {[%emt 0:00:00]} d6 {[%emt 0:00:00]} 5. Be2 {[%emt 0:00:08]} O-O {[%emt 0:00:09]} 6. Be3 {[%emt 0:00:07]} e5 {[%emt 0:02:10]} 7. d5 {[%emt 0:00:28]} Na6 {[%emt 0:00:22]} 8. g4 {[%emt 0:01:05]} Nc5 {[%emt 0:00:14]} 9. f3 {[%emt 0:00:11]} a5 {[%emt 0:02:10]} 10. h4 {[%emt 0:11:56]} c6 {[%emt 0:05:58]} 11. h5 {[%emt 0:02:30]} cxd5 {[%emt 0:08:28]} 12. cxd5 {[%emt 0:04:01]} a4 {[%emt 0:00:14]} 13. Qd2 {[%emt 0:02:17]} Re8 {[%emt 0:14:36]} 14. Bb5 {[%emt 0:08:53]} Bd7 {[%emt 0:00:48]} 15. Bxd7 {[%emt 0:00:07]} Qxd7 {[%emt 0:09:02]} 16. Nge2 {[%emt 0:00:18]} b5 {[%emt 0:04:02]} 17. Ng3 {[%emt 0:00:28]} b4 {[%emt 0:08:23]} 18. Nce2 {[%emt 0:00:25]} Qb5 {[%emt 0:03:44]} 19. Rd1 {[%emt 0:00:47]} Qc4 {[%emt 0:03:55]} 20. g5 {[%emt 0:04:30]} Nfd7 {[%emt 0:02:47]} 21. Nc1 {[%emt 0:01:03]} Rac8 {[%emt 0:03:56]} 22. Qh2 {[%emt 0:01:52]} Nf8 {[%emt 0:01:41]} 23. Qe2 {[%emt 0:00:47]} Na6 {[%emt 0:07:28]} 24. Qxc4 {[%emt 0:03:27]} Rxc4 {[%emt 0:00:02]} 25. Nd3 {[%emt 0:00:21]} Rec8 {[%emt 0:02:57]} 26. Nf1 {[%emt 0:02:02]} Nd7 {[%emt 0:03:24]} 27. Bf2 {[%emt 0:04:39]} R4c7 {[%emt 0:05:05]} 28. Ne3 {[%emt 0:01:35]} Rb8 {[%emt 0:04:12]} 29. Ke2 {[%emt 0:00:30]} b3 {[%emt 0:01:02]} 30. a3 {[%emt 0:01:37]} Bf8 {[%emt 0:02:10]} 31. hxg6 {[%emt 0:01:06]} fxg6 {[%emt 0:02:58]} 32. Rc1 {[%emt 0:01:19]} Rbc8 {[%emt 0:01:22]} 33. Rxc7 {[%emt 0:00:06]} Rxc7 {[%emt 0:00:08]} 34. Bg3 {[%emt 0:06:35]} Ndc5 {[%emt 0:02:28]} 35. Nxc5 {[%emt 0:01:08]} Rxc5 {[%emt 0:00:48]} 36. f4 {[%emt 0:01:29]} exf4 {[%emt 0:00:30]} 37. Bxf4 {[%emt 0:00:01]} Rc8 {[%emt 0:00:44]} 38. Ng4 {[%emt 0:02:28]} Bg7 {[%emt 0:00:28]} 39. Bxd6 {[%emt 0:02:52]} Rc2+ {[%emt 0:00:20]} 40. Ke3 {[%emt 0:00:00]} Rxb2 {[%emt 0:00:00]} 41. e5 {[%emt 0:02:45]} Rc2 {[%emt 0:14:44]} 42. Nf6+ {[%emt 0:01:04]} Bxf6 {[%emt 0:00:06]} 43. gxf6 {[%emt 0:00:04]} Rc3+ {[%emt 0:06:44]} 44. Kd4 {[%emt 0:00:28]} Rf3 {[%emt 0:00:13]} 45. e6 {[%emt 0:00:45]} Rxf6 {[%emt 0:02:34]} 46. e7 {[%emt 0:00:10]} Nc7 {[%emt 0:00:13]} 1-0